[Event "FIDE WSCC 50 2022"]
[Site "Assisi"]
[Date "2022.11.23"]
[Round "8.1"]
[White "Morovic Fernandez, Ivan"]
[Black "Lima, Darcy"]
[Result "1-0"]
[ECO "B36"]
[WhiteElo "2480"]
[BlackElo "2415"]
[Annotator "TA"]
[PlyCount "95"]
[EventDate "2022.11.14"]
[EventType "swiss"]
[EventCountry "ITA"]
[SourceTitle "playchess.com"]
[Source "ChessBase"]
[SourceQuality "1"]
[TimeControl "40/5400+30:1800+30"]

{[%evp 18,95,43,45,55,39,43,31,22,9,18,0,3,0,0,0,10,0,10,0,0,0,30,22,28,12,38,53,131,105,162,81,189,180,185,177,181,127,171,155,170,119,97,90,114,114,114,114,114,117,115,81,117,88,88,89,89,89,89,89,108,108,230,230,533,395,352,366,481,464,451,446,2728,1906,4810,1641,29996,0,12838,5714]} 1. e4 {[%emt 0:00:16]} c5 {[%emt 0:00:56]} 2. Nf3 {[%emt 0:00:22]} Nc6 {[%emt 0:00:10]} 3. d4 {[%emt 0:00:41]} cxd4 {[%emt 0:00:06]} 4. Nxd4 {[%emt 0:00:02]} g6 {[%emt 0:01:25]} 5. c4 {[%emt 0:01:59]} Nf6 {[%emt 0:00:29]} 6. Nc3 {[%emt 0:00:15]} d6 {[%emt 0:00:18]} 7. Be2 {[%emt 0:02:38]} Nxd4 {[%emt 0:00:39]} 8. Qxd4 {[%emt 0:00:04]} Bg7 {[%emt 0:00:06]} 9. Be3 {[%emt 0:01:40]} O-O {[%emt 0:00:22]} 10. Qd2 {[%emt 0:00:06]} a5 {[%emt 0:00:16][%cal Ba7a5,Ba5a4][%mdl 32] B36: Sicilian: Maroczy Bind: Gurgenidze System.} 11. O-O {[%emt 0:03:05]} a4 {[%emt 0:00:13]} 12. f3 {[%emt 0:01:40] 12.Bd4 gains popularity.} Qa5 {[%emt 0:00:48] White is slightly better.} 13. Rab1 {[%emt 0:08:30]} Be6 {[%emt 0:01:01]} 14. Rfc1 {[%emt 0:08:38]} Rfc8 {[%emt 0:00:45]} 15. b3 {[%emt 0:05:00]} axb3 {[%emt 0:01:04]} 16. axb3 {[%emt 0:00:02]} Qb4 {[%emt 0:01:13]} 17. Kf1 {[%emt 0:13:39] [#]} Kf8 $146 {[%emt 0:24:06]} ({Predecessor:} 17... Nd7 18. Nd5 Qxd2 19. Bxd2 Kf8 20. Bg5 f6 21. Be3 f5 22. Nf4 Bf7 23. exf5 gxf5 24. Nd5 b5 25. Rd1 bxc4 26. bxc4 Rab8 {½-½ (26) Dolezal,C (2389)-Mekhitarian,K (2544) Buenos Aires 2017}) 18. Rc2 {[%emt 0:03:06]} Nd7 {[%emt 0:14:03]} 19. Qc1 {[%emt 0:01:00]} Qa3 {[%emt 0:08:56]} 20. Qd1 {[%emt 0:04:05]} Qa5 {[%emt 0:09:20]} 21. Nb5 {[%emt 0:02:30][%cal Bc3b5,Bb5d4,Bd4e6][%mdl 32]} Qd8 {[%emt 0:00:29]} 22. Nd4 {[%emt 0:02:22]} Nc5 {[%emt 0:02:25]} (22... Bxd4 $14 23. Bxd4 (23. Qxd4 f6 $14) 23... f6) 23. b4 $16 {[%emt 0:01:10]} Nd7 {[%emt 0:01:14]} (23... Na4 $16) 24. c5 {[%emt 0:03:24]} ({Better is} 24. Nxe6+ $1 $18 fxe6 25. c5) 24... Nf6 {[%emt 0:04:20] [#]} (24... Bxd4 $16 25. Qxd4 (25. Bxd4 Qc7 $14) 25... Kg8) 25. Nxe6+ $1 $18 {[%emt 0:06:09]} fxe6 {[%emt 0:00:02]} 26. Rd2 {[%emt 0:00:26][%cal Rc5d6]} Ra3 {[%emt 0:03:19]} 27. Bd4 {[%emt 0:04:30]} ({White should try} 27. Rb3 $18 Rxb3 28. Qxb3) 27... d5 {[%emt 0:00:55]} 28. Bb2 {[%emt 0:04:14]} Raa8 {[%emt 0:00:17]} 29. Bxf6 {[%emt 0:04:16]} (29. e5 $18) 29... Bxf6 $16 {[%emt 0:00:04]} 30. exd5 {[%emt 0:00:02]} exd5 {[%emt 0:00:06]} 31. Rxd5 {[%emt 0:00:18]} Qc7 {[%emt 0:00:05]} 32. g3 {[%emt 0:00:35]} Rd8 {[%emt 0:01:01] Prevents Rd7.} 33. Bc4 {[%emt 0:01:57]} Kg7 {[%emt 0:01:51]} 34. Qe2 {[%emt 0:02:34]} (34. Kg2 {with more complications.} Rxd5 35. Qxd5 Rd8 36. Qf7+) 34... b6 {[%emt 0:02:47]} 35. Rbd1 {[%emt 0:06:37][%cal Oc5c6] Threatens to win with c6! White is more active.} (35. Qe6 {seems wilder.} bxc5 36. b5 Qa5 37. Rxd8 Rxd8 38. b6) 35... bxc5 {[%emt 0:01:35]} 36. bxc5 {[%emt 0:00:47]} Rxd5 {[%emt 0:06:58]} 37. Bxd5 {[%emt 0:00:01]} (37. Rxd5 Ra1+ 38. Kg2 Rb1 $11) 37... Rb8 {[%emt 0:00:05]} 38. c6 {[%emt 0:05:52]} Rb2 {[%emt 0:10:51]} 39. Rd2 {[%emt 0:00:04]} ({Don't go for} 39. Qe6 $2 Qa7 40. Qe1 Qc5 $19) 39... Rb1+ {[%emt 0:02:09] [#]} (39... Rxd2 $16 {was necessary.} 40. Qxd2 Qd6) 40. Kg2 $1 $18 {[%emt 0:02:30] aiming for Qe6.} ({Don't play} 40. Rd1 Rb2 41. Rd2 (41. Qe6 $2 Qa7 $19) 41... Rxd2 42. Qxd2 Qd6) 40... Bc3 $2 {[%emt 0:01:47]} (40... Qe5 {is tougher.} 41. Qf2 Ra1) 41. Rc2 {[%emt 0:33:11]} Re1 {[%emt 0:31:45]} 42. Qc4 {[%emt 0:00:00]} Ba5 {[%emt 0:00:00]} 43. Be4 {[%emt 0:00:00]} Rd1 {[%emt 0:00:00]} 44. Qe6 {[%emt 0:00:00] Hoping for Bd5.} Bb6 {[%emt 0:00:00]} (44... Rd6 $142 45. Qe5+ Rf6) 45. Bd5 {[%emt 0:00:00]} Kh6 {[%emt 0:00:00]} 46. Rc4 {[%emt 0:00:00] White wants to mate with Rh4+.} Kg7 {[%emt 0:03:09]} 47. Rc2 $2 {[%emt 0:03:43]} (47. Qf7+ {mates} Kh6 48. Rh4+ Kg5 49. f4+ Qxf4 50. Qxf4#) 47... Qd8 $2 {[%mdl 8192]} (47... Kh6 $11) 48. Qe5+ {[%emt 0:00:30] Weighted Error Value: White=0.38/Black=0.48} 1-0

[Event "FIDE WSCC 50 2022"]
[Site "Assisi"]
[Date "2022.11.23"]
[Round "8.2"]
[White "Holzke, Frank"]
[Black "Sturua, Zurab"]
[Result "0-1"]
[ECO "E20"]
[WhiteElo "2476"]
[BlackElo "2522"]
[Annotator "TA"]
[PlyCount "66"]
[EventDate "2022.11.14"]
[EventType "swiss"]
[EventCountry "ITA"]
[SourceTitle "playchess.com"]
[Source "ChessBase"]
[SourceQuality "1"]
[TimeControl "40/5400+30:1800+30"]

{[%evp 10,66,-7,-14,7,-31,4,-1,5,0,0,0,16,0,0,-17,-11,-26,0,-42,-2,-11,0,0,0,-84,-83,-74,-76,-108,-118,-115,-54,-55,-65,-57,-60,-52,-72,-109,-96,-175,-145,-278,-266,-287,-281,-396,-395,-400,-385,-407,-403,-853,-845,-1916,-1887,-1626,-1536]} 1. d4 {[%emt 0:00:11][%cal Bd2d4,Bd4d5][%mdl 32]} Nf6 {[%emt 0:00:44]} 2. c4 {[%emt 0:00:12]} e6 {[%emt 0:00:27]} 3. Nc3 {[%emt 0:00:11]} Bb4 {[%emt 0:00:28]} 4. f3 {[%emt 0:00:11]} c5 {[%emt 0:03:59]} 5. d5 {[%emt 0:00:16]} O-O {[%emt 0:01:13]} 6. e4 {[%emt 0:02:06]} d6 {[%emt 0:00:11] E20: Nimzo-Indian: 4 g3 and 4 f3.} (6... b5 {seems wilder.} 7. Bg5 h6 8. Bh4 d6) 7. Bd2 {[%emt 0:08:17]} Re8 {[%emt 0:03:30]} 8. Nge2 {[%emt 0:01:18][%cal Bg1e2,Be2g3,Bg3f5][%mdl 32]} exd5 {[%emt 0:03:40] The position is equal.} 9. cxd5 {[%emt 0:06:40]} Nbd7 {[%emt 0:08:40]} 10. Ng3 {[%emt 0:17:35] [#]} h5 $5 $146 {[%emt 0:08:42][%cal Bh7h5,Bh5h4][%mdl 8] New and interesting.} ({Predecessor:} 10... Ne5 11. Be2 a6 12. O-O Bd7 13. a4 h6 14. Kh1 Rc8 15. Qc2 c4 16. Rfb1 Ba5 {½-½ (62) Cruzado Duenas,C (2601)-Zautzig,H (2556) ICCF email 2014}) 11. Be2 {[%emt 0:00:38]} h4 $1 {[%emt 0:00:21]} 12. Nf5 {[%emt 0:00:23][%csl LRd6,LRh4]} Ne5 {[%emt 0:00:11]} 13. O-O {[%emt 0:00:41]} Bxf5 {[%emt 0:02:55]} (13... Bxc3 {simplifies} 14. Bxc3 Bxf5 15. exf5 Rc8) 14. exf5 {[%emt 0:00:15]} c4 {[%emt 0:00:53][%cal Oh4h3]} 15. Bg5 $1 {[%emt 0:06:21]} Bxc3 {[%emt 0:19:59]} 16. bxc3 {[%emt 0:00:17]} Qc8 {[%emt 0:02:16]} 17. f4 {[%emt 0:14:47]} (17. Bxf6 $11 gxf6 18. f4) 17... Qc5+ $17 {[%emt 0:06:30]} 18. Kh1 {[%emt 0:02:13]} Ned7 {[%emt 0:04:29] [#] aiming for ...Ne4.} 19. Bxh4 {[%emt 0:02:25]} Nxd5 {[%emt 0:03:30]} ({But not} 19... Qxd5 20. Qxd5 Nxd5 21. Bxc4 $11) 20. Rf3 {[%emt 0:05:50]} N7f6 {[%emt 0:02:49] Black is much more active. The white rooks are badly placed.} (20... Re4 $17 21. Qd2 Rae8) 21. Bf2 $15 {[%emt 0:01:31] [#]} Nxc3 $1 {[%emt 0:02:47] Pair of Knights!} 22. Qf1 {[%emt 0:00:59]} Qb4 $36 {[%emt 0:00:59][%mdl 2048] White is under pressure.} 23. Bxc4 {[%emt 0:12:31]} Rac8 {[%emt 0:00:55]} 24. Bb3 {[%emt 0:00:51]} a5 {[%emt 0:05:59]} (24... Nfe4 {feels hotter.} 25. Rh3 a5 26. Bg1 a4) 25. Be1 {[%emt 0:04:16]} (25. Bc2 $17 {keeps fighting.}) 25... d5 $19 {[%emt 0:00:15][%cal Bd6d5,Bd5d4,Bd4c3][%mdl 32]} 26. Bd2 {[%emt 0:07:10]} (26. Bf2 $17) 26... d4 {[%emt 0:03:27]} 27. Rb1 {[%emt 0:02:27][%cal Ob3f7]} Qd6 {[%emt 0:01:50]} 28. Rb2 {[%emt 0:01:09]} (28. Bxc3 {might work better.} dxc3 29. Rc1) 28... b5 {[%emt 0:00:45][%cal Bb7b5,Bb5b4][%mdl 32]} 29. Bc2 {[%emt 0:00:30]} b4 {[%emt 0:00:58]} 30. Bd3 {[%emt 0:00:16]} Qd5 {[%emt 0:01:42]} 31. Bxc3 {[%emt 0:01:33]} (31. Qa1 $142) 31... dxc3 {[%emt 0:00:43] Black is clearly winning.} 32. Re2 {[%emt 0:00:34]} Rxe2 {[%emt 0:01:28]} 33. Qxe2 {[%emt 0:00:08]} a4 {[%emt 0:00:55] Weighted Error Value: White=0.61/Black=0.08 (flawless)} 0-1

[Event "FIDE WSCC 50 2022"]
[Site "Assisi"]
[Date "2022.11.23"]
[Round "8.3"]
[White "Bellia, Fabrizio"]
[Black "Antic, Dejan"]
[Result "1-0"]
[ECO "C09"]
[WhiteElo "2398"]
[BlackElo "2412"]
[Annotator "TA"]
[PlyCount "115"]
[EventDate "2022.11.14"]
[EventType "swiss"]
[EventCountry "ITA"]
[SourceTitle "playchess.com"]
[Source "ChessBase"]
[SourceQuality "1"]
[TimeControl "40/5400+30:1800+30"]

{[%evp 12,115,22,20,35,21,25,36,29,22,23,19,29,31,39,24,39,28,30,24,17,25,19,16,13,12,31,0,84,89,79,95,138,135,141,114,112,109,136,136,139,142,194,187,158,137,151,142,139,145,133,128,135,102,111,113,133,119,130,123,133,135,209,202,200,207,210,208,209,202,198,179,192,189,344,252,247,237,271,270,272,270,257,265,381,358,338,330,436,434,719,711,681,681,865,729,1328,851,1361,1305,5579,5540,5808,5612,4618,1724]} 1. e4 {[%emt 0:00:04]} e6 {[%emt 0:00:09]} 2. d4 {[%emt 0:00:05]} d5 {[%emt 0:00:07]} 3. Nd2 {[%emt 0:00:04]} c5 {[%emt 0:00:40]} 4. Ngf3 {[%emt 0:00:22]} Nc6 {[%emt 0:00:55]} 5. exd5 {[%emt 0:00:23]} exd5 {[%emt 0:00:12]} 6. Bb5 {[%emt 0:00:30]} Qe7+ {[%emt 0:00:18] outshines the older 6...Bd6.} 7. Be2 {[%emt 0:00:39]} Qc7 {[%emt 0:00:54] C09: French Tarrasch: 3...c5 4 exd5 exd5 5 Ngf3 Nc6.} (7... Nxd4 8. Nxd4 cxd4 9. O-O $16) 8. O-O {[%emt 0:01:00]} Nf6 {[%emt 0:00:54]} 9. dxc5 {[%emt 0:00:49]} Bxc5 {[%emt 0:00:14] White is slightly better.} 10. Nb3 {[%emt 0:00:06]} Be7 {[%emt 0:00:43]} 11. Bg5 {[%emt 0:00:18]} O-O {[%emt 0:00:48]} 12. c3 {[%emt 0:00:19]} Rd8 {[%emt 0:04:47]} 13. Re1 {[%emt 0:02:31]} Bf5 {[%emt 0:02:14]} 14. Nfd4 {[%emt 0:09:31] [#]} Be4 $146 {[%emt 0:02:49]} ({Predecessor:} 14... Bg6 15. Bh4 Ne4 16. Bxe7 Nxe7 17. Bd3 Nc6 18. f3 Nd6 19. Bf1 Qb6 20. Qd2 a5 {½-½ (40) Vokhidov,S (2519)-Kryakvin,D (2610) St Petersburg 2019}) 15. Bh4 {[%emt 0:16:21]} a6 {[%emt 0:07:00]} 16. Bd3 {[%emt 0:01:17]} Re8 {[%emt 0:11:01]} 17. Bxe4 {[%emt 0:14:05]} dxe4 {[%emt 0:04:39]} 18. Qc2 {[%emt 0:05:00]} (18. Nxc6 {simplifies} Qxc6 19. Qc2 Rad8 20. Re2) 18... Qf4 {[%emt 0:04:27]} ({Don't take} 18... Ng4 19. Bg3 (19. Qxe4 $2 Qxh2+ 20. Kf1 Nxd4 $19) 19... Bd6 20. Rxe4 Bxg3 21. hxg3 $16 (21. fxg3 Nf6 $14)) (18... Rad8 {simplifies} 19. Nxc6 Qxc6 20. Re2 Qa4) 19. Bg3 {[%emt 0:00:45]} Qg5 {[%emt 0:01:36]} (19... Nxd4 $11 {remains equal.} 20. Nxd4 Qg5) 20. Nxc6 $1 $16 {[%emt 0:00:54]} bxc6 {[%emt 0:04:34]} 21. Nd2 {[%emt 0:00:43]} e3 {[%emt 0:08:59]} 22. Rxe3 {[%emt 0:00:53]} Bc5 {[%emt 0:00:14]} 23. Ne4 {[%emt 0:07:17]} Nxe4 {[%emt 0:08:01]} 24. Rxe4 {[%emt 0:00:06]} Qd5 {[%emt 0:01:21]} 25. Rae1 {[%emt 0:03:02]} Rxe4 {[%emt 0:01:31]} 26. Qxe4 {[%emt 0:00:07]} ({Resist} 26. Rxe4 Qxa2 27. h3 Bf8 $14) 26... Rd8 {[%emt 0:01:43]} (26... Qd2 $16 {might work better.} 27. Rf1 Qd7) 27. Qxd5 $18 {[%emt 0:01:27]} cxd5 {[%emt 0:00:42][%mdl 4096] Endgame KRB-KRB} 28. Rd1 {[%emt 0:01:42]} f6 {[%emt 0:01:36]} 29. Kf1 {[%emt 0:01:06]} Kf7 {[%emt 0:00:58]} 30. f3 {[%emt 0:00:27]} Ke6 {[%emt 0:00:45]} 31. Bf2 {[%emt 0:01:53]} Bd6 {[%emt 0:00:30]} 32. h3 {[%emt 0:00:31]} Rb8 {[%emt 0:01:35]} 33. Rd2 {[%emt 0:00:37]} Bf4 {[%emt 0:02:34]} 34. Rc2 {[%emt 0:05:02]} a5 {[%emt 0:01:17]} 35. b3 {[%emt 0:03:18][%cal Bb2b3,Bb3b4][%mdl 32]} a4 {[%emt 0:00:26]} 36. b4 {[%emt 0:01:01]} Be5 {[%emt 0:02:38]} (36... Rc8 $16 37. Ke2 Be5) 37. Ke2 {[%emt 0:00:19]} Rc8 {[%emt 0:03:30] [#]} 38. Bc5 $1 {[%emt 0:02:32]} Bd6 {[%emt 0:02:17]} 39. Bxd6 {[%emt 0:00:09]} Kxd6 {[%emt 0:00:05] KR-KR} 40. Kd3 {[%emt 0:00:05]} Rc4 {[%emt 0:00:07]} 41. a3 {[%emt 0:31:21]} h5 {[%emt 0:33:03]} 42. Rb2 {[%emt 0:00:20]} Kc6 $2 {[%emt 0:01:16]} (42... Rc7 43. Rb1 g6) 43. b5+ {[%emt 0:02:28]} Kb6 {[%emt 0:00:08] [#]} 44. Rb4 $1 {[%emt 0:00:18]} Rc7 {[%emt 0:03:27]} (44... Rxb4 45. cxb4 Kxb5 46. Kd4 $18) 45. Rd4 {[%emt 0:09:44]} ({Don't play} 45. Rxa4 $6 Kxb5 46. Ra8 Kc6 $16) 45... Rc5 {[%emt 0:00:00]} 46. Rxa4 {[%emt 0:00:00]} Kxb5 {[%emt 0:00:00]} 47. Ra7 {[%emt 0:00:00]} g5 {[%emt 0:00:00]} (47... Rc4 $142 48. Rxg7 Ra4) 48. a4+ {[%emt 0:00:00]} Kb6 {[%emt 0:00:00]} 49. Rf7 {[%emt 0:00:00]} Rc6 {[%emt 0:00:00]} 50. Kd4 {[%emt 0:00:00] White is clearly winning.} Ka5 {[%emt 0:00:00]} (50... g4 $142 51. fxg4 hxg4 52. Kxd5 Rc5+ 53. Kd4 Rf5) 51. Kxd5 {[%emt 0:00:00]} Rxc3 {[%emt 0:00:00]} 52. Rxf6 {[%emt 0:00:00]} Rc2 {[%emt 0:00:00]} 53. g4 {[%emt 0:00:00]} Rh2 {[%emt 0:00:00]} 54. Ke4 {[%emt 0:00:00]} Rxh3 {[%emt 0:00:00]} 55. Rf5+ {[%emt 0:00:00]} Kxa4 {[%emt 0:00:00]} 56. Rxg5 {[%emt 0:00:00]} h4 {[%emt 0:00:54]} 57. Rh5 {[%emt 0:00:00]} Rh1 {[%emt 0:00:12]} 58. Kf4 {[%emt 0:00:00] Weighted Error Value: White=0.07 (flawless) /Black=0.24 (precise)} (58. g5 $142 h3 59. Kf5) 1-0

[Event "FIDE WSCC 50 2022"]
[Site "Assisi"]
[Date "2022.11.23"]
[Round "8.4"]
[White "Nevednichy, Vladislav"]
[Black "Novik, Maxim"]
[Result "1-0"]
[ECO "B31"]
[WhiteElo "2499"]
[BlackElo "2412"]
[Annotator "TA"]
[PlyCount "107"]
[EventDate "2022.11.14"]
[EventType "swiss"]
[EventCountry "ITA"]
[SourceTitle "playchess.com"]
[Source "ChessBase"]
[SourceQuality "1"]
[TimeControl "40/5400+30:1800+30"]

{[%evp 12,107,30,26,33,10,32,26,32,22,28,33,25,36,30,0,-7,0,25,33,45,15,82,100,68,66,85,97,308,295,321,308,293,234,293,266,267,271,283,269,254,235,265,192,222,220,229,87,87,87,342,0,0,-29,0,0,0,0,0,8,87,87,87,80,86,109,366,383,455,449,608,580,589,556,508,351,314,288,340,340,346,383,345,278,479,462,475,426,320,338,1172,1127,6243,6129,5575,5556,5176,-29991]} 1. e4 {[%emt 0:00:05]} c5 {[%emt 0:00:12]} 2. Nf3 {[%emt 0:00:09]} Nc6 {[%emt 0:00:05]} 3. Bb5 {[%emt 0:00:34]} g6 {[%emt 0:00:45]} 4. Bxc6 {[%emt 0:01:05]} dxc6 {[%emt 0:00:05]} 5. d3 {[%emt 0:00:03]} Bg7 {[%emt 0:00:10]} 6. h3 {[%emt 0:00:07]} e5 {[%emt 0:04:11]} 7. O-O {[%emt 0:00:30]} Qc7 {[%emt 0:00:10] B31: Sicilian: 2...Nc6 3 Bb5 g6.} 8. a4 {[%emt 0:03:34]} Nf6 {[%emt 0:00:35]} 9. Be3 {[%emt 0:02:35]} b6 {[%emt 0:02:01] White has an edge.} 10. a5 {[%emt 0:06:10] [#]} Rb8 $146 {[%emt 0:00:25]} ({Predecessor:} 10... Ba6 11. Nc3 O-O 12. Nd2 Qe7 13. axb6 axb6 14. Qe2 Nd7 15. Ra2 Bb7 16. Rfa1 Rxa2 17. Rxa2 {½-½ (28) Vujacic,B (2217)-Djordjevic,B (1985) Belgrade 2021}) 11. axb6 {[%emt 0:05:06]} axb6 {[%emt 0:00:27]} 12. Qc1 {[%emt 0:00:05][%cal Of3e5]} Nh5 {[%emt 0:03:50]} 13. c3 {[%emt 0:26:42]} O-O {[%emt 0:01:56]} 14. d4 {[%emt 0:00:04]} f5 {[%emt 0:14:41]} 15. dxc5 {[%emt 0:11:03]} b5 {[%emt 0:00:08]} 16. b4 {[%emt 0:05:09]} f4 {[%emt 0:24:30]} (16... Nf6 $11) 17. Bd2 $16 {[%emt 0:00:10]} g5 {[%emt 0:01:57]} 18. Nxg5 {[%emt 0:11:21]} f3 $1 {[%emt 0:03:54]} 19. Nxf3 {[%emt 0:01:47]} (19. gxf3 $2 h6 20. Kh2 hxg5 $19) 19... Rxf3 $2 {[%emt 0:01:26]} 20. Qd1 $18 {[%emt 0:00:12][%mdl 64] Pin} (20. gxf3 Bxh3 21. Kh2 Bxf1 22. Qxf1 Kh8 $14) 20... Rxh3 {[%emt 0:05:23]} 21. gxh3 {[%emt 0:00:10]} Qf7 {[%emt 0:00:11]} 22. Kh2 {[%emt 0:02:34]} Be6 {[%emt 0:01:41]} 23. Be3 {[%emt 0:01:38] Hoping for Rg1.} Nf4 {[%emt 0:03:22]} 24. Qf3 {[%emt 0:00:28]} (24. Rg1 $6 Nxh3 25. Rg2 (25. Qd6 Nxg1 26. Qxb8+ Bf8 $11) 25... Kh8 $16) 24... Bxh3 {[%emt 0:00:35]} 25. Rg1 {[%emt 0:00:41]} Be6 {[%emt 0:00:30]} 26. Nd2 {[%emt 0:08:37]} Kh8 {[%emt 0:00:36]} 27. Rg3 {[%emt 0:03:20]} (27. Bxf4 exf4 28. Ra6 Rd8 $18) 27... Bh6 {[%emt 0:03:25]} 28. Kg1 {[%emt 0:05:28]} Rf8 {[%emt 0:01:27]} 29. Bxf4 {[%emt 0:02:28]} (29. Nf1 $18 {and White stays clearly on top.}) 29... Bxf4 $16 {[%emt 0:00:12] [#]} 30. Nf1 $1 {[%emt 0:00:02] Rg2 is the strong threat.} Qe8 $2 {[%emt 0:09:39][%mdl 8192]} (30... Bxg3 $16 31. Qxf7 (31. Qxg3 $2 {too greedy.} Rg8 $19) 31... Rxf7 32. Nxg3 (32. fxg3 Rf3 $14) 32... Kg7) 31. Qg2 $2 {[%emt 0:00:42]} Bxg3 $11 {[%emt 0:01:45]} (31... Qe7 {is more complex.} 32. Rd3 Rg8 33. Ng3 Bc4) 32. Nxg3 {[%emt 0:00:01]} Bg4 {[%emt 0:01:21]} (32... Qf7 {seems wilder.} 33. Qh2 Qf4 34. Ra7 h6) 33. Qh2 {[%emt 0:00:47]} Qg6 {[%emt 0:01:19] Against Qh6. Strongly threatening ...Qg5.} 34. Ra7 $40 {[%emt 0:01:03][%mdl 128] White is up to no good.} h5 $1 {[%emt 0:05:03] Threatens to win with ...Qg5.} 35. Qh4 {[%emt 0:00:04] Inhibits Qg5.} Qf6 {[%emt 0:01:15]} (35... Qh6 $1 $11) 36. Qxf6+ $16 {[%emt 0:00:48]} (36. Nf5 {keeps more tension.} Bf3 37. Qxf6+ Rxf6 38. Re7) 36... Rxf6 {[%emt 0:00:01][%mdl 4096] Endgame KRB-KRN} 37. Re7 {[%emt 0:00:38][%cal Ba7e7,Be7e5,Be5e4,Be4d4][%mdl 32]} Rg6 {[%emt 0:02:34] aiming for ...h4.} ({Weaker is} 37... h4 38. Nf1 $16) 38. Kh2 {[%emt 0:00:36] White is more active.} ({Of course not} 38. Rxe5 $6 h4 $11) 38... Rg5 {[%emt 0:01:18][%mdl 8192]} (38... Rf6 $16 {is a better defense.}) 39. Nf5 $18 {[%emt 0:01:05]} Bf3 {[%emt 0:04:13]} 40. Rxe5 {[%emt 0:00:25]} Bxe4 {[%emt 0:01:00]} 41. Rxe4 {[%emt 0:30:18]} Rxf5 {[%emt 0:30:01] KR-KR} 42. Kg3 {[%emt 0:00:06]} Kg7 {[%emt 0:01:34]} 43. f4 {[%emt 0:02:35]} Kf7 {[%emt 0:00:00]} 44. Rd4 {[%emt 0:00:00]} Ke7 {[%emt 0:00:00]} 45. Kf3 {[%emt 0:00:00]} Rf6 {[%emt 0:00:00]} 46. c4 {[%emt 0:00:00]} bxc4 {[%emt 0:00:00]} 47. Rxc4 {[%emt 0:00:00]} Rg6 $2 {[%emt 0:00:00]} (47... Rf8 {might work better.} 48. Rd4 Rb8) 48. Re4+ {[%emt 0:00:00]} Kf7 {[%emt 0:00:00]} 49. Rd4 {[%emt 0:00:00]} h4 {[%emt 0:00:17]} 50. f5 {[%emt 0:00:00][%csl LRg6,LRh4]} Rg3+ {[%emt 0:01:14] [#]} (50... Rg5 51. Rxh4 Rxf5+ 52. Rf4 Rxf4+ 53. Kxf4 Kf8) 51. Kf4 $1 {[%emt 0:00:00] White is clearly winning.} Rg1 {[%emt 0:03:51]} 52. Ke5 {[%emt 0:00:00]} h3 {[%emt 0:00:39]} 53. Rh4 {[%emt 0:00:00]} Rb1 {[%emt 0:00:29]} 54. Ke4 $4 {[%emt 0:06:25][%mdl 40960] A wild game.   Weighted Error Value: White=0.25 (precise) /Black=0.42. Sensor Board Error (Ke4/e5)?} (54. Rh7+ $18 Kg8 55. Rxh3) 1-0

[Event "FIDE WSCC 50 2022"]
[Site "Assisi"]
[Date "2022.11.23"]
[Round "8.5"]
[White "Mantovani, Renzo"]
[Black "Bischoff, Klaus"]
[Result "1/2-1/2"]
[ECO "A00"]
[WhiteElo "2246"]
[BlackElo "2479"]
[Annotator "TA"]
[PlyCount "50"]
[EventDate "2022.11.14"]
[EventType "swiss"]
[EventCountry "ITA"]
[SourceTitle "playchess.com"]
[Source "ChessBase"]
[SourceQuality "1"]
[TimeControl "40/5400+30:1800+30"]

{[%evp 9,50,-22,-14,-17,-20,-31,-24,-21,-8,-18,-16,-27,19,0,-7,0,12,13,16,16,15,0,0,0,0,0,10,13,0,-37,-13,-33,0,0,0,0,0,-36,-25,-37,-43,-54,-18]} 1. g3 {[%emt 0:00:11]} d5 {[%emt 0:00:43]} 2. Bg2 {[%emt 0:00:11]} e5 {[%emt 0:00:42]} 3. Nf3 {[%emt 0:01:46]} Bd6 {[%emt 0:06:18]} 4. d3 {[%emt 0:02:20]} Ne7 {[%emt 0:01:59]} 5. O-O {[%emt 0:00:45]} c5 {[%emt 0:04:53]} 6. Nc3 {[%emt 0:11:35] A00: Irregular Openings.} Nbc6 {[%emt 0:01:01]} 7. e4 {[%emt 0:00:08]} d4 {[%emt 0:00:21]} 8. Nd5 {[%emt 0:00:25] Black has an edge.} f6 {[%emt 0:07:00]} 9. c4 {[%emt 0:01:09] [#]} Bg4 $146 {[%emt 0:04:03]} ({Predecessor:} 9... Nxd5 10. cxd5 Ne7 11. Nd2 h5 12. h4 Bg4 13. f3 Bd7 14. Nc4 Qc7 15. a4 O-O-O {1-0 (54) MacDonald Ross,M (2154)-Raedeker,B (2256) Dresden 2008}) 10. h3 {[%emt 0:01:15]} Bh5 {[%emt 0:03:08]} (10... Bd7 $142) 11. Bd2 {[%emt 0:00:41]} (11. g4 $5 {[%cal Rg4h5]} Bg6 12. Nh4 $11) 11... O-O {[%emt 0:03:41]} 12. a3 {[%emt 0:03:25]} Nxd5 {[%emt 0:03:00]} 13. cxd5 {[%emt 0:09:36]} Ne7 {[%emt 0:00:16]} 14. b4 {[%emt 0:00:26]} b6 {[%emt 0:01:22]} 15. Qb3 {[%emt 0:01:48]} Qd7 {[%emt 0:02:11]} 16. Kh2 {[%emt 0:10:08]} Rfc8 {[%emt 0:00:59]} 17. Nh4 {[%emt 0:04:38]} Be2 {[%emt 0:07:27] [#] ...Qb5 is the strong threat.} 18. Rfc1 {[%emt 0:04:54]} Qb5 {[%emt 0:01:26]} 19. Bf1 {[%emt 0:01:55]} Bxf1 {[%emt 0:00:39]} 20. Rxf1 {[%emt 0:00:06]} c4 {[%emt 0:00:07]} 21. dxc4 {[%emt 0:00:13]} Qxc4 {[%emt 0:00:09]} 22. Qf3 {[%emt 0:10:36][%cal Od2h6]} Qc2 {[%emt 0:09:04]} 23. Rad1 {[%emt 0:11:33][%cal Od2h6]} Rf8 {[%emt 0:05:43]} 24. Nf5 {[%emt 0:01:14]} Nxf5 {[%emt 0:00:36]} 25. Qxf5 {[%emt 0:00:07] [#] Hoping for Qe6+.} Qc8 {[%emt 0:00:23] Weighted Error Value: White=0.10 (very precise) /Black=0.06 (flawless)} 1/2-1/2